[Event "Athens of East GM-Open 2019"]
[Site "Madurai"]
[Date "2019.08.16"]
[Round "8.5"]
[White "Triapishko, Alexandr"]
[Black "Muthaiah AL"]
[Result "1-0"]
[ECO "B15"]
[WhiteElo "2515"]
[BlackElo "2384"]
[Annotator "RC"]
[PlyCount "91"]
[EventDate "2019.08.11"]
[EventType "swiss"]
[EventCountry "IND"]
[SourceTitle "playchess.com"]
[Source "ChessBase"]
[SourceQuality "1"]
[TimeControl "5400+30"]

1. e4 {[%emt 0:05:52]} c6 {[%emt 0:01:38]} 2. d4 {[%emt 0:04:07]} d5 {[%emt 0:00:22]} 3. Nc3 {[%emt 0:03:23]} dxe4 {[%emt 0:00:41]} 4. Nxe4 {[%emt 0:00:21]} Nf6 {[%emt 0:00:45]} 5. Nxf6+ {[%emt 0:01:08]} exf6 {[%emt 0:00:12]} 6. Bc4 {[%emt 0:05:36]} Bd6 {[%emt 0:04:23]} 7. Qe2+ {[%emt 0:04:40]} Qe7 {[%emt 0:00:58]} 8. Qxe7+ {[%emt 0:04:42]} Kxe7 {[%emt 0:00:35]} 9. Ne2 {[%emt 0:01:38]} Re8 {[%emt 0:15:21]} 10. Bf4 {[%emt 0:12:51]} Be6 {[%emt 0:05:31]} 11. Bd3 {[%emt 0:04:25]} Nd7 {[%emt 0:00:45]} 12. O-O-O {[%emt 0:16:42]} Nb6 {[%emt 0:05:18]} 13. Bxd6+ {[%emt 0:06:09]} Kxd6 {[%emt 0:00:36]} 14. b3 {[%emt 0:02:51]} Nd5 {[%emt 0:14:03]} 15. c4 {[%emt 0:00:58]} Nb4 {[%emt 0:00:34]} 16. Nc3 Nxd3+ {[%emt 0:08:54]} 17. Rxd3 {[%emt 0:00:37]} Bf5 {[%emt 0:00:19]} 18. Rf3 {[%emt 0:06:01]} Bg6 {[%emt 0:03:24]} 19. h4 {[%emt 0:00:49]} h5 {[%emt 0:01:36]} 20. Kd2 {[%emt 0:03:04]} a6 {[%emt 0:12:41]} 21. Re3 {[%emt 0:05:37]} c5 {[%emt 0:01:19]} 22. Rhe1 {[%emt 0:03:06]} Rxe3 {[%emt 0:00:41]} 23. fxe3 {[%emt 0:00:26]} Kc6 {[%emt 0:02:39]} 24. a4 {[%emt 0:03:41]} Rd8 {[%emt 0:01:32]} 25. Ne2 {[%emt 0:00:13]} Bf5 {[%emt 0:05:20]} 26. a5 {[%emt 0:01:42]} Bg4 {[%emt 0:00:59]} 27. d5+ {[%emt 0:01:17]} Kd6 {[%emt 0:03:36]} 28. Nf4 {[%emt 0:00:38]} g6 {[%emt 0:03:15]} 29. e4 {[%emt 0:00:35]} Ke5 {[%emt 0:05:26]} 30. Ke3 {[%emt 0:00:10]} Re8 {[%emt 0:00:18]} 31. Nd3+ {[%emt 0:00:04]} Kd6 {[%emt 0:00:07]} 32. Kd2 {[%emt 0:00:22]} Rc8 {[%emt 0:00:33]} 33. Kc3 {[%emt 0:00:45]} Bd7 {[%emt 0:00:34]} 34. b4 {[%emt 0:01:22]} cxb4+ {[%emt 0:00:06]} 35. Kxb4 {[%emt 0:00:14]} Ke7 {[%emt 0:00:44]} 36. c5 {[%emt 0:01:09]} Bb5 {[%emt 0:00:21]} 37. Nb2 {[%emt 0:00:38]} Kd7 {[%emt 0:00:32]} 38. Nc4 {[%emt 0:00:12]} Bxc4 {[%emt 0:00:41]} 39. Kxc4 {[%emt 0:00:02]} Re8 {[%emt 0:00:14]} 40. Kd4 {[%emt 0:00:25]} Rb8 {[%emt 0:01:18]} 41. Rb1 {[%emt 0:00:25]} Kd8 {[%emt 0:00:27]} 42. Rb6 {[%emt 0:00:10]} Ke7 {[%emt 0:00:08]} 43. c6 {[%emt 0:00:36]} Kd6 {[%emt 0:00:08]} 44. cxb7+ {[%emt 0:00:12]} Kc7 {[%emt 0:00:08]} 45. Rxf6 {[%emt 0:00:16]} Rf8 {[%emt 0:00:24]} 46. e5 {[%emt 0:00:15]} 1-0

[Event "Athens of East GM-Open 2019"]
[Site "Madurai"]
[Date "2019.08.16"]
[Round "8.6"]
[White "Nikhil Magizhnan"]
[Black "Mosadeghpour, Masoud"]
[Result "0-1"]
[ECO "B50"]
[WhiteElo "2164"]
[BlackElo "2494"]
[Annotator "RC"]
[PlyCount "160"]
[EventDate "2019.08.11"]
[EventType "swiss"]
[EventCountry "IND"]
[SourceTitle "playchess.com"]
[Source "ChessBase"]
[SourceQuality "1"]
[TimeControl "5400+30"]

1. e4 {[%emt 0:01:03]} c5 {[%emt 0:05:06]} 2. Nf3 {[%emt 0:00:14]} d6 {[%emt 0:00:16]} 3. Bc4 {[%emt 0:00:03]} Nc6 {[%emt 0:01:03]} 4. d3 {[%emt 0:01:51]} Nf6 {[%emt 0:01:10]} 5. c3 {[%emt 0:00:36]} g6 {[%emt 0:00:52]} 6. O-O {[%emt 0:04:43]} Bg7 {[%emt 0:00:54]} 7. Bb3 {[%emt 0:02:11]} O-O {[%emt 0:00:57]} 8. h3 {[%emt 0:01:47]} b5 {[%emt 0:09:13]} 9. Be3 {[%emt 0:02:34]} Bb7 {[%emt 0:01:55]} 10. Nbd2 {[%emt 0:03:44]} Rc8 {[%emt 0:11:20]} 11. d4 {[%emt 0:01:41]} Na5 {[%emt 0:09:12]} 12. Bc2 {[%emt 0:02:06]} e6 {[%emt 0:03:14]} 13. a4 {[%emt 0:03:54]} b4 {[%emt 0:04:00]} 14. cxb4 {[%emt 0:02:16]} cxb4 {[%emt 0:00:45]} 15. Bd3 {[%emt 0:01:10]} Qd7 {[%emt 0:14:09]} 16. Ne1 {[%emt 0:07:43]} d5 {[%emt 0:02:07]} 17. e5 {[%emt 0:02:57]} Ne4 {[%emt 0:00:05]} 18. f3 {[%emt 0:14:23]} Ng3 {[%emt 0:01:57]} 19. Rf2 {[%emt 0:01:30]} Nc4 {[%emt 0:00:17]} 20. Bf4 {[%emt 0:05:52]} Nxb2 {[%emt 0:04:49]} 21. Bb5 {[%emt 0:07:04]} Qxb5 {[%emt 0:03:04]} 22. axb5 {[%emt 0:00:30]} Nxd1 {[%emt 0:00:04]} 23. Rxd1 {[%emt 0:02:53]} Nf5 {[%emt 0:00:49]} 24. Nb3 {[%emt 0:00:19]} f6 {[%emt 0:05:52]} 25. exf6 {[%emt 0:01:01]} Bxf6 {[%emt 0:00:27]} 26. g4 {[%emt 0:01:19]} Rc3 {[%emt 0:13:35]} 27. Nc5 {[%emt 0:15:07]} Nxd4 {[%emt 0:00:10]} 28. Nxb7 {[%emt 0:00:16]} Nxb5 {[%emt 0:00:06]} 29. Nd6 {[%emt 0:01:43]} Na3 {[%emt 0:01:46]} 30. Re2 {[%emt 0:01:04]} b3 {[%emt 0:01:29]} 31. Bd2 {[%emt 0:03:29]} b2 {[%emt 0:01:34]} 32. Bxc3 {[%emt 0:00:37]} Bxc3 {[%emt 0:00:01]} 33. Rxe6 {[%emt 0:01:42]} b1=Q {[%emt 0:00:10]} 34. Rxb1 {[%emt 0:00:07]} Nxb1 {[%emt 0:00:03]} 35. Nb5 {[%emt 0:02:10]} a5 {[%emt 0:01:36]} 36. Nxc3 {[%emt 0:01:11]} Nxc3 {[%emt 0:00:01]} 37. Rc6 {[%emt 0:00:39]} d4 {[%emt 0:01:48]} 38. Nc2 {[%emt 0:01:30]} Ne2+ {[%emt 0:00:28]} 39. Kf2 {[%emt 0:00:27]} d3 {[%emt 0:00:10]} 40. Rc5 {[%emt 0:02:16]} a4 {[%emt 0:02:02]} 41. Nb4 {[%emt 0:00:59]} Nd4 {[%emt 0:00:35]} 42. Rd5 {[%emt 0:00:28]} Nxf3 {[%emt 0:00:29]} 43. Nxd3 {[%emt 0:00:07]} Ne5+ {[%emt 0:00:52]} 44. Ke2 {[%emt 0:01:47]} Nxd3 {[%emt 0:00:04]} 45. Rxd3 {[%emt 0:01:27]} Ra8 {[%emt 0:00:05]} 46. Ra3 {[%emt 0:00:00]} Kf7 {[%emt 0:00:41]} 47. Ke3 {[%emt 0:00:00]} Kf6 {[%emt 0:00:14]} 48. Kf4 {[%emt 0:00:00]} h6 {[%emt 0:00:44]} 49. Ke4 {[%emt 0:00:00]} Kg5 {[%emt 0:00:33]} 50. Ke5 {[%emt 0:00:00]} Ra6 {[%emt 0:00:38]} 51. Kd4 {[%emt 0:00:16]} Ra5 {[%emt 0:00:58]} 52. Ke4 {[%emt 0:00:16]} Kh4 {[%emt 0:00:50]} 53. Kf4 {[%emt 0:00:05]} Ra8 {[%emt 0:00:25]} 54. Ke5 {[%emt 0:00:19]} Ra6 {[%emt 0:00:05]} 55. Kf4 {[%emt 0:00:10]} Ra5 {[%emt 0:00:20]} 56. Ke4 {[%emt 0:00:16]} g5 {[%emt 0:00:48]} 57. Kd4 {[%emt 0:00:36]} Rb5 {[%emt 0:00:16]} 58. Ke4 {[%emt 0:00:34]} Rb3 {[%emt 0:00:45]} 59. Rxa4 {[%emt 0:00:12]} Rxh3 {[%emt 0:00:45]} 60. Kf5 {[%emt 0:00:06]} h5 {[%emt 0:00:40]} 61. gxh5+ {[%emt 0:00:26]} Kxh5 {[%emt 0:00:04]} 62. Ra1 {[%emt 0:01:29]} g4 {[%emt 0:00:27]} 63. Ke4 {[%emt 0:00:46]} Rf3 {[%emt 0:00:57]} 64. Rh1+ {[%emt 0:00:07]} Kg5 {[%emt 0:00:05]} 65. Rh8 {[%emt 0:00:40]} Rf7 {[%emt 0:00:11]} 66. Ke3 {[%emt 0:00:43]} g3 {[%emt 0:00:10]} 67. Ke2 {[%emt 0:00:09]} Kg4 {[%emt 0:00:07]} 68. Ke1 {[%emt 0:00:40]} g2 {[%emt 0:00:39]} 69. Ke2 {[%emt 0:00:01]} Kg3 {[%emt 0:00:58]} 70. Rg8+ {[%emt 0:00:12]} Kh2 {[%emt 0:00:06]} 71. Rh8+ {[%emt 0:00:20]} Kg1 {[%emt 0:00:03]} 72. Rh6 {[%emt 0:00:39]} Rf5 {[%emt 0:01:10]} 73. Rh8 {[%emt 0:00:25]} Re5+ {[%emt 0:00:09]} 74. Kd2 {[%emt 0:00:18]} Kf2 {[%emt 0:00:36]} 75. Rf8+ {[%emt 0:00:03]} Kg3 {[%emt 0:00:10]} 76. Rg8+ {[%emt 0:00:04]} Kf3 {[%emt 0:00:04]} 77. Kd1 {[%emt 0:01:06]} Re4 {[%emt 0:00:15]} 78. Rf8+ {[%emt 0:00:07]} Rf4 {[%emt 0:00:08]} 79. Rg8 {[%emt 0:00:06]} Rg4 {[%emt 0:00:09]} 80. Rf8+ {[%emt 0:00:04]} Kg3 {[%emt 0:00:07]} 0-1

[Event "Athens of East GM-Open 2019"]
[Site "Madurai"]
[Date "2019.08.16"]
[Round "8.17"]
[White "Samal Ansuman"]
[Black "Prasannaa.s"]
[Result "0-1"]
[ECO "B00"]
[WhiteElo "1975"]
[BlackElo "2233"]
[Annotator "RC"]
[PlyCount "56"]
[EventDate "2019.08.11"]
[EventType "swiss"]
[EventCountry "IND"]
[SourceTitle "playchess.com"]
[Source "ChessBase"]
[SourceQuality "1"]
[TimeControl "5400+30"]

1. e4 {[%emt 0:04:00]} a6 {[%emt 0:00:00]} 2. a4 {[%emt 0:00:48]} e5 {[%emt 0:00:39]} 3. d4 {[%emt 0:01:12]} exd4 {[%emt 0:00:05]} 4. Qxd4 {[%emt 0:00:05]} Nc6 {[%emt 0:00:03]} 5. Qe3 {[%emt 0:00:05]} Nf6 {[%emt 0:02:51]} 6. Nc3 {[%emt 0:00:15]} Bb4 {[%emt 0:00:06]} 7. Bd2 {[%emt 0:00:24]} O-O {[%emt 0:00:04]} 8. O-O-O {[%emt 0:02:48]} Re8 {[%emt 0:04:51]} 9. Qg3 {[%emt 0:00:08]} Nxe4 {[%emt 1:25:51]} 10. Nxe4 {[%emt 0:00:03]} Rxe4 {[%emt 0:00:00]} 11. c3 {[%emt 0:00:23]} Bf8 {[%emt 0:00:00]} 12. Bd3 {[%emt 0:02:03]} Rxa4 {[%emt 0:00:00]} 13. Nf3 {[%emt 0:00:38]} d5 {[%emt 0:00:00]} 14. Ng5 {[%emt 0:01:31]} g6 {[%emt 0:00:00]} 15. f4 {[%emt 0:01:46]} Ne7 {[%emt 0:00:00]} 16. Rhe1 {[%emt 0:11:05]} Bf5 {[%emt 0:00:00]} 17. Kb1 {[%emt 0:11:25]} c6 {[%emt 0:00:00]} 18. b3 {[%emt 0:04:44]} Ra5 {[%emt 0:00:00]} 19. c4 {[%emt 0:03:31]} Bg7 {[%emt 0:00:00]} 20. Bxa5 {[%emt 0:00:59]} Qxa5 {[%emt 0:00:00]} 21. Re5 {[%emt 0:01:46]} Bxe5 {[%emt 0:00:00]} 22. fxe5 {[%emt 0:00:02]} h6 {[%emt 0:00:00]} 23. Nh3 {[%emt 0:01:59]} dxc4 {[%emt 0:00:00]} 24. Bxf5 {[%emt 0:01:46]} Nxf5 {[%emt 0:00:00]} 25. Qf3 {[%emt 0:00:13]} cxb3 {[%emt 0:00:00]} 26. Qxb3 {[%emt 0:00:36]} Rd8 {[%emt 0:00:00]} 27. Rxd8+ {[%emt 0:01:04]} Qxd8 {[%emt 0:00:00]} 28. e6 {[%emt 0:00:09]} Qe7 {[%emt 0:00:00]} 0-1

[Event "Athens of East GM-Open 2019"]
[Site "Madurai"]
[Date "2019.08.17"]
[Round "9.2"]
[White "Venkatesh, M.R."]
[Black "Triapishko, Alexandr"]
[Result "1-0"]
[ECO "B11"]
[WhiteElo "2480"]
[BlackElo "2515"]
[Annotator "ChessBase"]
[PlyCount "115"]
[EventDate "2019.08.11"]
[EventType "swiss"]
[EventCountry "IND"]
[SourceTitle "playchess.com"]
[Source "ChessBase"]
[SourceQuality "1"]
[TimeControl "5400+30"]

1. e4 {[%emt 0:01:29]} c6 {[%emt 0:02:38]} 2. Nc3 {[%emt 0:00:13]} d5 {[%emt 0:00:16]} 3. Nf3 {[%emt 0:00:16]} Bg4 {[%emt 0:05:54]} 4. h3 {[%emt 0:00:12]} Bxf3 {[%emt 0:02:20]} 5. Qxf3 {[%emt 0:00:07]} Nf6 {[%emt 0:07:21]} 6. Be2 {[%emt 0:05:59]} e6 {[%emt 0:15:32]} 7. O-O {[%emt 0:01:34]} Be7 8. d3 {[%emt 0:11:29]} O-O {[%emt 0:18:44]} 9. Qg3 {[%emt 0:06:16]} Kh8 {[%emt 0:05:26]} 10. e5 {[%emt 0:19:47]} Nfd7 {[%emt 0:04:10]} 11. f4 {[%emt 0:00:26]} c5 {[%emt 0:04:50]} 12. Bg4 {[%emt 0:04:39]} Nc6 {[%emt 0:01:47]} 13. Ne2 {[%emt 0:00:16]} b5 {[%emt 0:06:16]} 14. c3 {[%emt 0:06:40]} g6 {[%emt 0:02:41]} 15. Be3 {[%emt 0:02:05]} a5 {[%emt 0:04:53]} 16. Bf2 {[%emt 0:02:17]} c4 {[%emt 0:03:55]} 17. d4 {[%emt 0:02:21]} b4 {[%emt 0:04:03]} 18. h4 {[%emt 0:03:22]} a4 {[%emt 0:02:47]} 19. a3 {[%emt 0:01:45]} bxa3 {[%emt 0:00:11]} 20. bxa3 {[%emt 0:00:02]} Rg8 {[%emt 0:04:45]} 21. Qh3 {[%emt 0:05:33]} Nf8 {[%emt 0:01:01]} 22. h5 {[%emt 0:02:33]} Qd7 {[%emt 0:00:14]} 23. Rfb1 {[%emt 0:07:08]} Rb8 {[%emt 0:01:08]} 24. Rxb8 {[%emt 0:05:04]} Nxb8 {[%emt 0:00:01]} 25. Rb1 {[%emt 0:00:07]} Nc6 {[%emt 0:00:05]} 26. Rb6 {[%emt 0:04:31]} Nd8 {[%emt 0:01:21]} 27. Bh4 {[%emt 0:01:59]} Bxh4 {[%emt 0:00:22]} 28. Qxh4 {[%emt 0:00:02]} g5 {[%emt 0:00:07]} 29. Qf2 {[%emt 0:01:45]} Qc7 {[%emt 0:01:09]} 30. Ra6 {[%emt 0:01:42]} gxf4 {[%emt 0:00:29]} 31. Qh4 {[%emt 0:00:02]} f5 {[%emt 0:00:09]} 32. exf6 {[%emt 0:00:37]} Nf7 {[%emt 0:00:50]} 33. Bf3 {[%emt 0:02:12]} Ng5 {[%emt 0:00:26]} 34. Kf2 {[%emt 0:00:22]} Nd7 {[%emt 0:00:33]} 35. Nxf4 {[%emt 0:01:13]} Nxf6 {[%emt 0:00:30]} 36. Ng6+ {[%emt 0:01:10]} hxg6 {[%emt 0:00:22]} 37. hxg6+ {[%emt 0:00:22]} Kg7 {[%emt 0:00:19]} 38. Qxg5 {[%emt 0:00:06]} Rf8 {[%emt 0:00:50]} 39. Kg1 {[%emt 0:00:53]} Re8 {[%emt 0:00:31]} 40. Rxa4 {[%emt 0:00:15]} Rb8 {[%emt 0:00:32]} 41. Rb4 {[%emt 0:00:45]} Re8 {[%emt 0:00:28]} 42. Qe5 {[%emt 0:00:37]} Qxe5 {[%emt 0:00:29]} 43. dxe5 {[%emt 0:00:02]} Ng8 {[%emt 0:00:30]} 44. Rb6 {[%emt 0:00:08]} Kxg6 {[%emt 0:00:33]} 45. Bxd5 {[%emt 0:01:12]} Kf5 {[%emt 0:00:05]} 46. Bxc4 {[%emt 0:00:05]} Kxe5 {[%emt 0:00:09]} 47. a4 {[%emt 0:00:09]} Nf6 {[%emt 0:00:54]} 48. a5 {[%emt 0:01:29]} Rc8 {[%emt 0:00:33]} 49. Bxe6 {[%emt 0:00:38]} Rxc3 {[%emt 0:00:06]} 50. a6 {[%emt 0:00:30]} Ne4 {[%emt 0:00:36]} 51. Bg4 {[%emt 0:00:31]} Ra3 {[%emt 0:00:44]} 52. Kh2 {[%emt 0:00:29]} Nd2 {[%emt 0:00:52]} 53. Be2 {[%emt 0:00:23]} Ra2 {[%emt 0:00:18]} 54. Rb7 {[%emt 0:00:32]} Ne4 {[%emt 0:00:26]} 55. a7 {[%emt 0:00:26]} Nd6 {[%emt 0:00:44]} 56. Rc7 {[%emt 0:00:07]} Kf6 {[%emt 0:00:32]} 57. Rc6 {[%emt 0:00:27]} Ke7 {[%emt 0:00:30]} 58. Ba6 {[%emt 0:00:37]} 1-0

[Event "Athens of East GM-Open 2019"]
[Site "Madurai"]
[Date "2019.08.17"]
[Round "9.3"]
[White "Mosadeghpour, Masoud"]
[Black "Das, Sayantan"]
[Result "0-1"]
[ECO "B48"]
[WhiteElo "2494"]
[BlackElo "2409"]
[Annotator "ChessBase"]
[PlyCount "97"]
[EventDate "2019.08.11"]
[EventType "swiss"]
[EventCountry "IND"]
[SourceTitle "playchess.com"]
[Source "ChessBase"]
[SourceQuality "1"]
[TimeControl "5400+30"]

1. e4 {[%emt 0:04:51]} c5 {[%emt 0:00:00]} 2. Nf3 {[%emt 0:00:13]} e6 {[%emt 0:00:00]} 3. d4 {[%emt 0:00:04]} cxd4 {[%emt 0:00:03]} 4. Nxd4 {[%emt 0:00:04]} Nc6 {[%emt 0:00:04]} 5. Nc3 {[%emt 0:00:15]} Qc7 {[%emt 0:00:16]} 6. Be3 {[%emt 0:00:12]} a6 {[%emt 0:00:10]} 7. f4 {[%emt 0:00:19]} b5 {[%emt 0:01:57]} 8. Nb3 {[%emt 0:00:14]} Bb7 {[%emt 0:05:24]} 9. Bd3 {[%emt 0:00:19]} d6 {[%emt 0:05:45]} 10. O-O {[%emt 0:00:08]} Nf6 {[%emt 0:00:47]} 11. a3 {[%emt 0:00:48]} Be7 {[%emt 0:00:16]} 12. Qf3 {[%emt 0:00:39]} Rc8 {[%emt 0:05:36]} 13. Qg3 {[%emt 0:12:17]} h5 {[%emt 0:09:41]} 14. h3 {[%emt 0:02:32]} h4 {[%emt 0:03:33]} 15. Qf2 {[%emt 0:02:49]} Nh5 {[%emt 0:19:09]} 16. a4 {[%emt 0:25:19]} b4 {[%emt 0:03:06]} 17. Ne2 {[%emt 0:06:23]} O-O {[%emt 0:08:23]} 18. a5 {[%emt 0:06:36]} Qb8 {[%emt 0:03:08]} 19. Nd2 {[%emt 0:05:40]} Nf6 {[%emt 0:10:26]} 20. Nf3 {[%emt 0:11:39]} d5 {[%emt 0:05:48]} 21. e5 {[%emt 0:01:36]} Ne4 {[%emt 0:00:08]} 22. Qe1 {[%emt 0:00:25]} Bd8 {[%emt 0:07:24]} 23. Bb6 {[%emt 0:01:46]} Be7 {[%emt 0:04:57]} 24. Nxh4 {[%emt 0:06:10]} g6 {[%emt 0:00:40]} 25. Nf3 {[%emt 0:00:54]} Qa8 {[%emt 0:00:36]} 26. Bxe4 {[%emt 0:03:58]} dxe4 {[%emt 0:00:06]} 27. Ng5 {[%emt 0:00:49]} Bxg5 {[%emt 0:04:17]} 28. fxg5 {[%emt 0:00:02]} e3 {[%emt 0:00:34]} 29. Qg3 {[%emt 0:04:21]} Ne7 {[%emt 0:00:31]} 30. Nd4 {[%emt 0:00:21]} Nd5 {[%emt 0:01:12]} 31. Rf6 {[%emt 0:00:50]} Rc4 {[%emt 0:00:31]} 32. b3 {[%emt 0:01:16]} Rc3 {[%emt 0:00:19]} 33. Qg4 {[%emt 0:00:44]} Qc8 {[%emt 0:00:46]} 34. Raf1 {[%emt 0:00:39]} Rxc2 {[%emt 0:00:42]} 35. Nxc2 {[%emt 0:00:26]} Qxc2 {[%emt 0:00:02]} 36. R6f3 {[%emt 0:01:24]} Qd2 {[%emt 0:01:05]} 37. Qd4 {[%emt 0:00:55]} Qc2 {[%emt 0:00:30]} 38. Bc5 {[%emt 0:00:26]} Rc8 {[%emt 0:00:13]} 39. Bd6 {[%emt 0:00:31]} Qa2 {[%emt 0:00:37]} 40. Qg4 {[%emt 0:00:29]} e2 {[%emt 0:00:23]} 41. Re1 {[%emt 0:00:35]} Qd2 {[%emt 0:00:16]} 42. Kf2 {[%emt 0:00:11]} Nc3 {[%emt 0:00:32]} 43. Rxc3 {[%emt 0:00:26]} bxc3 {[%emt 0:00:17]} 44. Rxe2 {[%emt 0:00:40]} Qd1 {[%emt 0:00:37]} 45. Re1 {[%emt 0:00:33]} Qd2+ {[%emt 0:00:16]} 46. Re2 {[%emt 0:00:09]} Qd1 {[%emt 0:01:08]} 47. Re1 {[%emt 0:00:13]} Qxb3 {[%emt 0:00:08]} 48. Kg1 {[%emt 0:01:18]} c2 {[%emt 0:01:41]} 49. Rf1 0-1

[Event "Athens of East GM-Open 2019"]
[Site "Madurai"]
[Date "2019.08.17"]
[Round "9.6"]
[White "Murali Krishnan B T"]
[Black "Shyaamnikhil P"]
[Result "0-1"]
[ECO "A46"]
[WhiteElo "2192"]
[BlackElo "2456"]
[Annotator "ChessBase"]
[PlyCount "99"]
[EventDate "2019.08.11"]
[EventType "swiss"]
[EventCountry "IND"]
[SourceTitle "playchess.com"]
[Source "ChessBase"]
[SourceQuality "1"]
[TimeControl "5400+30"]

1. d4 {[%emt 0:00:00]} d6 {[%emt 0:00:19]} 2. Nf3 {[%emt 0:01:20]} Bg4 {[%emt 0:02:09]} 3. Nbd2 {[%emt 0:06:24]} Nf6 {[%emt 0:02:24]} 4. h3 {[%emt 0:00:36]} Bf5 {[%emt 0:03:07]} 5. g3 {[%emt 0:01:01]} h6 {[%emt 0:13:12]} 6. Bg2 {[%emt 0:00:50]} c6 {[%emt 0:00:50]} 7. b3 {[%emt 0:04:11]} Nbd7 {[%emt 0:05:19]} 8. Bb2 {[%emt 0:00:11]} e6 {[%emt 0:01:15]} 9. O-O {[%emt 0:09:12]} Be7 {[%emt 0:02:21]} 10. Re1 {[%emt 0:01:35]} Bh7 {[%emt 0:00:43]} 11. e4 {[%emt 0:00:27]} d5 {[%emt 0:00:06]} 12. exd5 {[%emt 0:06:55]} cxd5 {[%emt 0:02:47]} 13. c4 {[%emt 0:00:28]} dxc4 {[%emt 0:01:30]} 14. bxc4 {[%emt 0:04:40]} O-O {[%emt 0:00:11]} 15. Qb3 {[%emt 0:01:59]} Rc8 {[%emt 0:01:10]} 16. Ba3 {[%emt 0:07:21]} Rc7 {[%emt 0:02:55]} 17. Rac1 {[%emt 0:03:53]} b6 {[%emt 0:01:31]} 18. Bf1 {[%emt 0:05:36]} Re8 {[%emt 0:00:24]} 19. Bd3 {[%emt 0:03:05]} Bxd3 {[%emt 0:03:20]} 20. Qxd3 {[%emt 0:00:02]} Bxa3 {[%emt 0:03:46]} 21. Qxa3 {[%emt 0:00:07]} Qa8 {[%emt 0:00:11]} 22. Qa4 {[%emt 0:14:21]} Rec8 {[%emt 0:01:18]} 23. Rc2 {[%emt 0:02:01]} Qb7 {[%emt 0:01:37]} 24. Qb3 {[%emt 0:01:15]} Rc6 {[%emt 0:02:43]} 25. Rec1 {[%emt 0:02:42]} Qc7 {[%emt 0:01:04]} 26. a4 {[%emt 0:02:47]} e5 {[%emt 0:02:58]} 27. a5 {[%emt 0:06:08]} bxa5 {[%emt 0:05:47]} 28. Qa3 {[%emt 0:05:00]} a4 {[%emt 0:06:48]} 29. c5 {[%emt 0:01:25]} exd4 {[%emt 0:02:22]} 30. Nxd4 {[%emt 0:01:38]} Rxc5 {[%emt 0:00:09]} 31. Qxa4 {[%emt 0:00:29]} Qb7 {[%emt 0:02:48]} 32. Rxc5 {[%emt 0:02:48]} Rxc5 {[%emt 0:28:56]} 33. Ra1 {[%emt 0:00:23]} Nb6 {[%emt 0:00:00]} 34. Qa3 {[%emt 0:02:51]} Rc7 {[%emt 0:00:00]} 35. Qf3 {[%emt 0:00:18]} Nbd5 {[%emt 0:00:00]} 36. Ne4 {[%emt 0:00:44]} Qb2 {[%emt 0:00:00]} 37. Nxf6+ {[%emt 0:00:45]} Nxf6 {[%emt 0:00:00]} 38. Rd1 {[%emt 0:00:23]} Rc1 {[%emt 0:00:00]} 39. Rxc1 {[%emt 0:00:27]} Qxc1+ {[%emt 0:00:00]} 40. Kg2 {[%emt 0:00:03]} Qc5 {[%emt 0:00:00]} 41. Nc6 {[%emt 0:03:01]} a5 {[%emt 0:00:00]} 42. Nd8 {[%emt 0:00:54]} a4 {[%emt 0:00:00]} 43. Kh2 {[%emt 0:00:41]} a3 {[%emt 0:00:00]} 44. Qa8 {[%emt 0:00:19]} Qxf2+ {[%emt 0:00:00]} 45. Kh1 {[%emt 0:00:03]} Qe1+ {[%emt 0:00:00]} 46. Kh2 {[%emt 0:00:08]} Qd2+ {[%emt 0:00:00]} 47. Kg1 {[%emt 0:00:13]} Qc1+ {[%emt 0:00:00]} 48. Kg2 {[%emt 0:00:10]} Qb2+ {[%emt 0:00:00]} 49. Kf3 {[%emt 0:00:12]} Kh7 {[%emt 0:00:00]} 50. Nxf7 {[%emt 0:01:15]} 0-1